bitfinex-derivatives/quotes_ETHF0:USTF0_20250326
["timestamp","ask_amount","ask_price","bid_price","bid_amount"]
[1742991551509,2.28258,2063.0,2062.9,0.96929]
[1742991551706,1.3133,2063.0,2062.9,2.31099]
[1742991552012,2.28254,2063.0,2062.9,1.3417]
[1742991552311,2.28254,2063.0,2062.9,0.96929]
[1742991552705,2.28254,2063.0,2062.7,40.8]
[1742991552906,1.2928,2062.9,2062.7,40.8]
[1742991553304,1.66344,2062.8,2062.7,41.76935]
[1742991553504,0.6941,2062.8,2062.7,41.76935]
[1742991553813,1.9869,2062.8,2062.7,41.76935]
[1742991555014,2.95624,2062.8,2062.7,41.76935]
[1742991555214,1.9869,2062.8,2062.7,41.76935]
[1742991555414,2.95624,2062.8,2062.7,41.76935]
[1742991555613,1.9869,2062.8,2062.7,41.76935]
[1742991555806,2.95624,2062.8,2062.7,41.76935]
[1742991556315,1.9869,2062.8,2062.7,41.76935]
[1742991557516,1.2928,2062.8,2062.7,41.76935]
[1742991558513,1.2928,2062.8,2062.7,43.84935]
[1742991558717,1.2928,2062.8,2062.7,41.76935]
[1742991558918,1.2928,2062.8,2062.7,43.14715]
[1742991560118,1.2928,2062.8,2062.7,45.12715]
[1742991560317,1.2928,2062.8,2062.7,43.14715]
[1742991562623,0.96949,2062.5,2062.4,0.96949]
[1742991563011,0.96949,2062.5,2062.4,41.76949]
[1742991564822,0.96949,2062.5,2062.4,40.8]
[1742991565014,7.31629,2062.5,2062.4,40.8]
[1742991566723,0.96957,2062.3,2062.2,0.96958]
[1742991567117,0.96967,2062.1,2062.0,2.36676]
[1742991567324,0.96967,2062.1,2062.0,41.76966]
[1742991567826,3.00627,2062.1,2062.0,41.76966]
[1742991568014,2.32637,2062.1,2062.0,40.8]
[1742991568219,3.00627,2062.1,2062.0,40.8]
[1742991570222,3.149,2062.3,2062.0,40.8]
[1742991570427,4.11857,2062.3,2062.2,0.96962]
[1742991570617,0.96967,2062.1,2062.0,41.76968]
[1742991570930,0.96967,2062.1,2062.0,40.8]
[1742991571127,0.96967,2062.1,2062.0,41.76971]
[1742991571426,1.63577,2062.1,2062.0,41.76971]
[1742991571726,2.99447,2062.1,2062.0,41.76971]
[1742991572113,2.99447,2062.1,2062.0,40.8]
[1742991572318,2.99447,2062.1,2062.0,41.76971]
[1742991572514,6.14847,2062.1,2062.0,40.8]
[1742991572926,6.14847,2062.1,2062.0,41.76971]
[1742991573118,2.99447,2062.1,2062.0,41.76971]
[1742991573313,1.3587,2062.1,2062.0,41.76971]
[1742991573527,2.32837,2062.1,2062.0,41.76971]
[1742991573722,1.3587,2062.1,2062.0,41.76971]
[1742991573923,1.3587,2062.1,2062.0,43.82971]
[1742991574114,4.17742,2062.2,2062.1,0.96967]
[1742991574319,4.17742,2062.2,2062.1,4.52457]
[1742991574523,4.17742,2062.2,2062.1,5.16467]
[1742991574524,3.2078,2062.2,2062.1,5.16467]
[1742991574723,4.17742,2062.2,2062.1,5.16467]
[1742991574924,5.56352,2062.2,2062.1,5.16467]
[1742991576122,5.56352,2062.2,2062.1,2.99467]
[1742991576320,0.96971,2062.0,2061.9,0.96976]
[1742991576522,0.96971,2062.0,2061.9,2.38856]
[1742991576923,2.36281,2062.0,2061.9,2.38856]
[1742991577927,1.3931,2062.0,2061.9,2.38856]
[1742991578330,1.3931,2062.0,2061.9,4.71856]
[1742991578718,1.3931,2062.0,2061.9,2.38856]
[1742991579419,1.3931,2062.0,2061.9,0.96976]
[1742991579619,1.3931,2062.0,2061.9,2.28046]
[1742991580928,1.3931,2062.0,2061.9,4.50046]
[1742991581123,1.3931,2062.0,2061.9,2.28046]
[1742991581326,1.3931,2062.0,2061.9,45.41046]
[1742991581730,1.3931,2062.0,2061.9,43.08046]
[1742991582332,1.3931,2062.0,2061.9,45.00046]
[1742991582527,1.3931,2062.0,2061.9,43.08046]
[1742991584536,1.3931,2062.0,2061.9,45.52046]
[1742991584726,0.96949,2062.5,2062.4,0.96949]
[1742991584926,0.96949,2062.5,2062.3,0.96954]
[1742991584927,0.96954,2062.4,2062.3,0.96954]
[1742991585128,0.96954,2062.4,2062.3,0.6593]
[1742991585324,0.96954,2062.4,2062.3,1.62887]
[1742991585935,1.4172,2062.4,2062.3,2.97177]
[1742991589337,1.4172,2062.4,2062.3,5.26177]
[1742991589722,3.2078,2062.6,2062.5,0.96948]
[1742991589928,4.5604,2062.6,2062.5,0.96948]
[1742991590335,5.52983,2062.6,2062.5,0.96948]
[1742991590525,6.86983,2062.6,2062.5,0.96948]
[1742991591436,5.9004,2062.6,2062.5,0.96948]
[1742991591629,6.86983,2062.6,2062.5,0.96948]
[1742991592135,5.9004,2062.6,2062.5,0.96948]
[1742991592333,5.2028,2062.6,2062.5,3.00948]
[1742991592536,4.5604,2062.6,2062.5,3.00948]
[1742991593035,0.00725812,2062.7,2062.6,0.96943]
[1742991593233,0.00725812,2062.7,2062.6,6.01013]
[1742991596734,0.00725812,2062.7,2062.6,3.67013]
[1742991597538,0.00725812,2062.7,2062.6,5.70013]
[1742991599650,0.00725812,2062.7,2062.6,46.50013]
[1742991601150,0.67925812,2062.7,2062.6,46.50013]
[1742991601347,0.67925812,2062.7,2062.6,43.79943]
[1742991601647,0.67925812,2062.7,2062.6,2.99943]
[1742991602042,2.99203812,2062.7,2062.6,2.99953]
[1742991602546,2.02255812,2062.7,2062.6,2.99953]
[1742991604951,2.02255812,2062.7,2062.6,4.41703]
[1742991605154,1.35055812,2062.7,2062.6,5.11703]
[1742991606755,3.2078,2062.9,2062.8,0.96943]
[1742991606947,4.6025,2062.9,2062.8,3.10943]
[1742991607347,4.6025,2062.9,2062.8,4.47283]
[1742991612753,1.3947,2062.9,2062.8,4.47283]
[1742991613151,1.3947,2062.9,2062.8,3.10943]
[1742991615358,4.6025,2062.9,2062.8,3.10943]
[1742991615970,5.57189,2062.9,2062.8,3.10943]
[1742991616254,4.6025,2062.9,2062.8,3.10943]
[1742991616863,5.57189,2062.9,2062.8,3.10943]
[1742991618263,4.6025,2062.9,2062.8,3.10943]
[1742991618464,5.57189,2062.9,2062.8,2.14]
[1742991618658,5.57189,2062.9,2062.8,3.10943]
[1742991619164,4.6025,2062.9,2062.8,3.10943]
[1742991619362,1.3947,2062.9,2062.8,3.10943]
[1742991620757,1.3947,2062.9,2062.8,4.46373]
[1742991621858,0.65695812,2063.1,2063.0,0.96934]
[1742991622058,0.65695812,2063.1,2063.0,3.08934]
[1742991624865,0.65695812,2063.1,2063.0,3.73224]
[1742991625073,1.98045812,2063.1,2063.0,3.73224]
[1742991626062,1.98045812,2063.1,2063.0,3.08934]
[1742991626264,1.98045812,2063.1,2063.0,0.96934]
[1742991626659,1.98045812,2063.1,2063.0,3.08934]
[1742991627066,1.33075812,2063.1,2063.0,3.08934]
[1742991629172,1.33075812,2063.1,2063.0,0.97934]
[1742991629773,1.33075812,2063.1,2063.0,2.99934]
[1742991629975,3.2078,2063.5,2063.4,0.96915]
[1742991630171,4.6164,2063.5,2063.4,3.11915]
[1742991630766,4.6164,2063.5,2063.4,4.39585]
[1742991632270,0.00725812,2063.7,2063.6,0.96906]
[1742991632473,1.39165812,2063.7,2063.6,43.93906]
[1742991633966,1.39165812,2063.7,2063.6,41.76906]
[1742991634374,0.00725812,2063.7,2063.6,42.11906]
[1742991634572,3.2078,2064.0,2063.8,0.96892]
[1742991634778,0.6746,2063.9,2063.7,0.96897]
[1742991634984,1.64356,2063.9,2063.8,0.96896]
[1742991635275,1.64352,2063.9,2063.8,0.96896]
[1742991635672,2.036,2063.9,2063.8,0.96896]
[1742991636786,2.036,2063.9,2063.8,2.34686]
[1742991637379,2.036,2063.9,2063.8,0.96896]
[1742991637965,2.036,2063.9,2063.4,43.22283]
[1742991638170,3.2078,2063.7,2063.5,1.3441]
[1742991638378,1.9914,2063.6,2063.5,2.31321]
[1742991638680,2.6748,2063.6,2063.5,2.31321]
[1742991643882,2.6748,2063.6,2063.5,43.11321]
[1742991646983,1.3377,2063.6,2063.5,45.85321]
[1742991647689,1.3377,2063.6,2063.5,45.33321]
[1742991648590,3.2078,2063.7,2063.6,0.96906]
[1742991648889,3.2078,2063.7,2063.6,2.32826]
[1742991649191,3.2078,2063.7,2063.6,43.12826]
[1742991649385,3.9026,2063.7,2063.6,43.12826]
[1742991651490,4.87161,2063.7,2063.6,40.8]
[1742991651690,3.9026,2063.7,2063.4,0.96912]
[1742991651891,0.96911,2063.5,2063.4,1.04912]
[1742991652094,0.96911,2063.5,2063.4,1.04914]
[1742991652391,2.36611,2063.5,2063.4,41.84914]
[1742991652691,2.36611,2063.5,2063.4,40.88]
[1742991652889,2.36611,2063.5,2063.4,41.84915]
[1742991653688,1.397,2063.5,2063.4,41.84915]
[1742991653887,2.36611,2063.5,2063.4,41.84915]
[1742991654794,1.397,2063.5,2063.4,41.84915]
[1742991655093,2.36611,2063.5,2063.4,41.84915]
[1742991655889,2.36611,2063.5,2063.4,1.04915]
[1742991656094,2.36611,2063.5,2063.4,0.96915]
[1742991656888,1.397,2063.5,2063.4,0.96915]
[1742991657096,1.397,2063.5,2063.4,2.34985]
[1742991658693,3.9026,2063.7,2063.6,0.96906]
[1742991659295,3.9026,2063.7,2063.6,41.76906]
[1742991659492,4.87161,2063.7,2063.6,41.76906]
[1742991659690,3.9026,2063.7,2063.6,41.76906]
[1742991660192,4.5333,2063.7,2063.6,43.09366]
[1742991660391,4.5333,2063.7,2063.6,43.77566]
[1742991661898,4.5333,2063.7,2063.6,46.12566]
[1742991662101,3.2078,2063.7,2063.6,43.77566]
[1742991663703,1.2931,2063.8,2063.7,0.96901]
[1742991663903,1.2931,2063.8,2063.7,2.28651]
[1742991670203,7.33291812,2064.1,2064.0,0.96887]
[1742991670405,8.00851812,2064.1,2064.0,0.96887]
[1742991671305,4.85951812,2064.1,2064.0,0.96887]
[1742991671500,6.14971812,2064.1,2064.0,0.96887]
[1742991672493,5.18085812,2064.1,2064.0,0.96887]
[1742991672894,6.14967812,2064.1,2064.0,0.96887]
[1742991686414,5.47407812,2064.1,2064.0,0.96887]
[1742991686614,6.17567812,2064.1,2064.0,0.96887]
[1742991687318,7.70685812,2064.1,2063.1,6.30173]
[1742991687511,0.9692,2063.3,2063.2,1.78644812]
[1742991687706,0.9692,2063.3,2063.2,2.39214812]
[1742991688024,0.9692,2063.3,2063.2,43.19214812]
[1742991688411,1.3963,2063.3,2063.2,43.19214812]
[1742991688607,2.3655,2063.3,2063.2,43.19214812]
[1742991689117,1.3963,2063.3,2063.2,43.19214812]
[1742991690721,1.3963,2063.3,2063.2,43.85794812]
[1742991691421,4.17691,2063.5,2063.4,0.96915]
[1742991692618,5.57541,2063.5,2063.4,0.96915]
[1742991697125,5.57541,2063.5,2063.3,2.32226]
[1742991697126,0.96915,2063.4,2063.3,2.32226]
[1742991697323,2.25315,2063.4,2063.3,2.32226]
[1742991697719,0.9692,2063.3,2063.2,0.97645812]
[1742991697922,1.6655,2063.3,2063.2,0.97645812]
[1742991698118,1.6655,2063.3,2063.2,2.30545812]
[1742991698826,0.96939,2062.9,2062.8,0.6495]
[1742991699023,3.2078,2062.9,2062.3,5.63198]
[1742991699217,3.2078,2062.7,2062.6,0.96953]
[1742991699419,3.2078,2062.7,2062.6,41.76953]
[1742991700326,5.58998,2062.7,2062.6,40.8]
[1742991700931,5.58998,2062.7,2062.6,42.1005]
[1742991701117,5.58998,2062.7,2062.6,40.8]
[1742991701322,0.96958,2062.5,2062.4,0.00725812]
[1742991701521,4.10958,2062.5,2062.4,0.00725812]
[1742991701722,4.10958,2062.5,2062.4,40.80725812]
[1742991703433,4.10958,2062.5,2062.4,41.77687812]
[1742991703823,4.10958,2062.5,2062.4,40.80725812]
[1742991704327,4.10958,2062.5,2062.4,0.00725812]
[1742991704724,6.60958,2062.5,2062.4,0.00725812]
[1742991706125,0.96958,2062.5,2062.4,0.00725812]
[1742991706326,4.11658,2062.5,2062.4,0.00725812]
[1742991706527,4.11658,2062.5,2062.4,0.97687812]
[1742991706827,4.12058,2062.5,2062.4,0.00725812]
[1742991707229,4.12058,2062.5,2062.4,0.97687812]
[1742991707827,4.12058,2062.5,2062.4,0.00725812]
[1742991708028,4.12058,2062.5,2062.4,1.34115812]
[1742991708332,4.12058,2062.5,2062.4,0.00725812]
[1742991709338,4.12058,2062.5,2062.4,2.31077812]
[1742991709836,4.12058,2062.5,2062.4,1.34115812]
[1742991710537,4.12058,2062.5,2062.4,0.00725812]
[1742991711433,6.62058,2062.5,2062.4,0.00725812]
[1742991711833,0.96986,2061.9,2061.8,0.96987]
[1742991712032,4.17766,2061.9,2061.8,0.96987]
[1742991712236,4.17766,2061.9,2061.8,41.76987]
[1742991713135,5.57756,2061.9,2061.8,43.07767]
[1742991713431,5.57756,2061.9,2061.8,42.1078]
[1742991713937,5.57756,2061.9,2061.7,0.6535]
[1742991713938,0.96995,2061.7,2061.6,0.00725812]
[1742991714135,4.14695,2061.7,2061.6,0.00725812]
[1742991714937,4.81415,2061.7,2061.6,0.00725812]
[1742991717834,1.63715,2061.7,2061.6,0.00725812]
[1742991718242,4.81115,2061.7,2061.6,0.00725812]
[1742991718542,4.81115,2061.7,2060.2,3.2078]
[1742991718543,3.2078,2061.6,2060.2,3.2078]
[1742991718844,4.17825,2060.7,2060.6,0.97045]
[1742991719031,4.17826,2060.7,2060.6,40.8]
[1742991719237,3.2078,2060.7,2060.6,41.77047]
[1742991719436,3.22,2060.8,2060.7,0.97042]
[1742991719736,7.39818,2060.8,2060.7,2.0138]
[1742991720137,0.97042,2060.7,2060.6,40.8]
[1742991720331,0.97058,2060.4,2060.3,0.97059]
[1742991720538,6.4368,2060.5,2060.2,1.3164]
[1742991720734,6.4368,2060.5,2060.3,40.8]
[1742991720940,6.4368,2060.5,2060.4,2.0083]
[1742991720941,7.39284291,2060.5,2060.4,2.0083]
[1742991721141,0.97056,2060.4,2060.3,40.8]
[1742991721340,0.97061,2060.3,2060.2,1.3164]
[1742991721641,0.9706,2060.4,2060.3,0.97061]
[1742991722237,0.97056,2060.4,2060.3,40.8]
[1742991722936,3.19330291,2060.5,2060.3,41.7706]
[1742991723133,4.14932582,2060.5,2060.4,1.338]
[1742991723337,5.48292582,2060.5,2060.4,1.338]
[1742991723840,0.97056,2060.4,2060.3,40.8]
[1742991724035,0.97066,2060.2,2060.1,1.338]
[1742991724245,4.17846,2060.2,2060.1,1.338]
[1742991725448,0.97075,2060.0,2059.9,0.97076]
[1742991725855,2.28274,2060.1,2060.0,0.97075]
[1742991726043,3.2078,2060.2,2060.1,0.97071]
[1742991726238,0.97061,2060.4,2060.0,3.71408]
[1742991726438,4.5198,2060.5,2060.1,0.6845]
[1742991726742,7.7618,2060.5,2060.2,42.7431]
[1742991726947,0.97061,2060.3,2060.2,41.4559]
[1742991728242,0.97061,2060.3,2060.2,40.8]
[1742991728645,2.26121,2060.3,2060.2,40.8]
[1742991728845,0.9706,2060.4,2060.2,40.8]
[1742991729041,0.97061,2060.3,2060.2,40.8]
[1742991729442,2.26121,2060.3,2060.2,40.8]
[1742991729643,2.26121,2060.3,2060.2,41.77066]
[1742991730146,2.26121,2060.3,2060.2,40.8]
[1742991730343,2.26121,2060.3,2060.2,41.77066]
[1742991730544,0.97058,2060.4,2060.3,0.97059]
[1742991730743,3.2078,2060.5,2060.4,0.97056]
[1742991730744,4.17836,2060.5,2060.4,0.97056]
[1742991731043,4.16386291,2060.5,2060.3,1.65707]
[1742991731350,0.97056,2060.4,2060.3,1.65707]
[1742991731650,0.97056,2060.4,2060.3,1.64257291]
[1742991732347,2.31696,2060.4,2060.3,1.64257291]
[1742991734247,1.3464,2060.4,2060.3,1.64257291]
[1742991734456,4.16384291,2060.5,2060.4,0.97056]
[1742991734645,5.45884582,2060.5,2060.4,0.97056]
[1742991734842,0.97056,2060.4,2060.3,1.64256291]
[1742991735154,0.97061,2060.3,2060.2,41.77063]
[1742991735348,3.17880582,2060.5,2060.4,0.97056]
[1742991735544,3.16430873,2060.5,2060.4,0.97056]
[1742991736353,6.19106,2060.7,2060.6,0.97047]
[1742991737654,1.9866,2060.7,2060.6,0.97047]
[1742991737859,1.3095,2060.7,2060.6,0.97047]
[1742991738258,0.97054,2060.5,2060.4,0.97052]
[1742991738559,3.2078,2060.5,2060.4,0.97056]
[1742991739265,3.9019759,2061.0,2060.9,0.97033]
[1742991739458,0.97034,2060.9,2060.8,0.97035]
[1742991739653,0.97038,2060.8,2060.7,4.17821]
[1742991739955,2.42597,2060.8,2060.3,7.1386]
[1742991740161,2.0016,2060.7,2060.3,6.32913]
[1742991740363,2.0016,2060.7,2060.5,0.97049]
[1742991740364,2.31449,2060.6,2060.5,0.97049]
[1742991740564,0.97053,2060.5,2060.4,0.97052]
[1742991740765,2.34693,2060.5,2060.4,0.97052]
[1742991741363,1.3764,2060.5,2060.3,0.6948]
[1742991741666,1.3764,2060.5,2060.4,0.97056]
[1742991743154,1.62805,2060.7,2060.6,0.97047]
[1742991743772,0.97048,2060.6,2060.3,6.32904]
[1742991743963,0.97048,2060.6,2060.5,0.97048]
[1742991744156,0.6576,2060.7,2060.3,6.32904]
[1742991744361,0.97048,2060.6,2060.5,0.97047]
[1742991744670,2.38137,2060.6,2060.5,0.97047]
[1742991744971,0.97052,2060.5,2060.4,2.98824]
[1742991745167,1.4109,2060.5,2060.4,2.98824]
[1742991745568,1.4109,2060.5,2060.4,2.29384]
[1742991748871,0.6576,2060.7,2060.6,0.97047]
[1742991749059,1.9925,2060.7,2060.6,0.97047]
[1742991749768,2.96292,2060.7,2060.6,0.97047]
[1742991749975,1.9925,2060.7,2060.6,0.97047]
[1742991750673,0.97049,2060.6,2060.5,0.9705]
[1742991750868,0.97052,2060.5,2060.4,2.36153]
[1742991751074,2.30359,2060.6,2060.5,0.97052]
[1742991751268,2.30359,2060.6,2060.4,2.36152]
[1742991751467,1.3331,2060.5,2060.4,2.36152]
[1742991754571,0.6576,2060.7,2060.6,0.97047]
[1742991754867,1.62802,2060.7,2060.5,2.37768]
[1742991755166,0.97047,2060.6,2060.5,2.37768]
[1742991755477,0.97051,2060.6,2060.5,0.97051]
[1742991755679,8.06582,2060.7,2060.6,0.97047]
[1742991756374,3.8654,2060.7,2060.6,0.97047]
[1742991756675,0.6703,2060.8,2060.7,0.97042]
[1742991757277,1.9294,2060.9,2060.8,0.97038]
[1742991757475,0.6429,2060.9,2060.8,0.97038]
[1742991758477,3.8538759,2061.0,2060.9,0.97033]
[1742991758664,4.8241559,2061.0,2060.9,0.97033]
[1742991759274,4.8241559,2061.0,2060.9,2.26593]
[1742991759470,3.8538759,2061.0,2060.9,2.26593]
[1742991762476,3.2150759,2061.0,2060.9,2.26593]
[1742991763277,0.0072759,2061.0,2060.9,2.26593]
[1742991763676,0.0072759,2061.0,2060.9,5.47373]
[1742991776882,0.6670759,2061.0,2060.9,5.47373]
[1742991781100,0.0072759,2061.0,2060.9,5.47373]
[1742991783593,0.6630759,2061.0,2060.9,5.47373]
[1742991790500,0.6630759,2061.0,2060.9,0.97033]
[1742991790904,2.0023759,2061.0,2060.9,0.97033]
[1742991791098,2.9726559,2061.0,2060.9,0.97033]
[1742991791297,2.0023759,2061.0,2060.9,0.97033]
[1742991793696,2.0023759,2061.0,2060.7,1.3383]
[1742991793697,2.9726759,2061.0,2060.7,1.3383]
[1742991793898,2.9726759,2061.0,2060.7,0.97038]
[1742991793899,2.0804,2060.9,2060.7,0.97038]
[1742991794208,1.3944,2060.8,2060.7,0.97038]
[1742991796107,2.36478,2060.8,2060.6,3.2078]
[1742991796294,2.36478,2060.8,2060.7,0.97042]
[1742991796493,2.36478,2060.8,2060.6,3.2078]
[1742991796701,2.36812,2060.7,2060.6,3.2078]
[1742991796900,0.97047,2060.6,2060.5,0.97051]
[1742991797106,3.7386,2060.6,2060.4,0.97055]
[1742991797307,3.7386,2060.6,2060.3,4.5247]
[1742991797501,1.3977,2060.5,2060.4,0.97056]
[1742991798601,2.36825,2060.5,2060.3,5.49528]
[1742991798909,2.36825,2060.5,2060.3,4.17837]
[1742991799109,1.289,2060.4,2060.3,4.17837]
[1742991799310,1.289,2060.4,2060.3,4.16387291]
[1742991800110,2.25956,2060.4,2060.3,0.97057]
[1742991801013,0.97061,2060.3,2060.2,42.2144]
[1742991801205,1.9529,2060.3,2060.2,43.18504]
[1742991801407,1.2948,2060.3,2060.2,43.18504]
[1742991805514,1.2948,2060.3,2060.2,41.77064]
[1742991805814,2.26541,2060.3,2060.2,0.97066]
[1742991808619,1.2948,2060.3,2060.2,0.97066]
[1742991808812,1.2948,2060.3,2060.2,2.27866]
[1742991809012,2.26541,2060.3,2060.2,2.27866]
[1742991810019,1.2948,2060.3,2060.2,2.27866]
[1742991810320,2.26544,2060.3,2060.1,41.77066]
[1742991810617,2.36246,2060.2,2060.1,43.08061]
[1742991810808,3.68686,2060.2,2060.1,43.08061]
[1742991812814,3.68686,2060.2,2060.1,42.1099]
[1742991813015,0.97071,2060.1,2060.0,3.2078]
[1742991813210,2.29511,2060.1,2060.0,3.2078]
[1742991813415,1.3244,2060.1,2059.9,2.28067]
[1742991813618,1.3165,2060.0,2059.9,43.08067]
[1742991813819,2.28725,2060.0,2059.9,42.1099]
[1742991814211,2.28729,2060.0,2059.6,5.63513]
[1742991814405,2.0068,2059.9,2059.8,0.97081]
[1742991814613,2.0068,2059.9,2059.8,41.77081]
[1742991815217,2.0068,2059.9,2059.7,1.3603]
[1742991815419,1.3165,2059.8,2059.7,2.33116]
[1742991815916,1.3165,2059.8,2059.7,43.13116]
[1742991816305,1.3165,2059.8,2059.7,40.8]
[1742991816306,2.96855,2059.8,2059.7,40.8]
[1742991816509,1.9977,2059.8,2059.7,43.15449]
[1742991816712,1.3165,2059.8,2059.7,43.15449]
[1742991817519,1.3165,2059.8,2059.7,43.83969]
[1742991817719,2.28735,2059.8,2059.7,42.1836]
[1742991818019,2.28735,2059.8,2059.7,43.15449]
[1742991818020,1.3165,2059.8,2059.7,43.15449]
[1742991822116,0.6903,2059.9,2059.8,0.97085]
[1742991822313,2.0068,2059.9,2059.8,2.37665]
[1742991823318,2.0068,2059.9,2059.8,3.69545]
[1742991824222,0.6884759,2060.0,2059.9,0.9708]
[1742991824423,0.0072759,2060.0,2059.9,2.252]
[1742991825515,0.0072759,2060.0,2059.9,5.4598]
[1742991825719,0.669,2060.4,2060.3,0.97061]
[1742991825915,0.669,2060.4,2060.1,2.42667]
[1742991825916,3.2078,2060.5,2060.4,0.97056]
[1742991826114,4.79807,2060.7,2060.5,0.97049]
[1742991826316,3.8276,2060.7,2060.6,0.97047]
[1742991826519,4.79802,2060.7,2060.6,0.97047]
[1742991826724,1.62002,2060.7,2060.6,0.97047]
[1742991826925,1.9469,2060.7,2060.6,0.97047]
[1742991827118,2.91732,2060.7,2060.6,0.97047]
[1742991827320,2.91732,2060.7,2060.6,2.36017]
[1742991827827,0.0072759,2060.9,2060.8,0.97038]
[1742991828021,1.3045759,2060.9,2060.8,0.97038]
[1742991829321,2.2749059,2060.9,2060.8,0.97038]
[1742991829726,1.3045759,2060.9,2060.8,0.97038]
[1742991829930,2.2749059,2060.9,2060.8,0.97038]
[1742991830223,1.3045759,2060.9,2060.8,0.97038]
[1742991830432,1.3045759,2060.9,2060.7,2.36012]
[1742991830729,1.3045759,2060.9,2060.7,1.3897]
[1742991831029,1.3045759,2060.9,2060.8,1.4015]
[1742991831225,2.2749059,2060.9,2060.8,1.4015]
[1742991833019,1.3045759,2060.9,2060.6,0.6405]
[1742991833225,1.2829,2060.8,2060.6,1.61097]
[1742991833425,0.6964,2060.7,2060.6,0.6405]
[1742991833632,2.36742,2060.7,2060.6,0.6405]
[1742991834130,2.36742,2060.7,2060.6,1.61097]
[1742991834333,2.36742,2060.7,2060.6,2.92867]
[1742991834535,2.36742,2060.7,2060.6,1.9582]
[1742991836233,0.97042,2060.7,2060.6,1.9582]
[1742991836621,2.28912,2060.7,2060.6,1.9582]
[1742991837435,2.28912,2060.7,2060.6,2.92867]
[1742991837634,2.28912,2060.7,2060.6,1.9582]
[1742991838031,2.28912,2060.7,2060.6,2.92867]
[1742991838228,2.28912,2060.7,2060.6,1.9582]
[1742991838838,1.3187,2060.7,2060.6,2.92867]
[1742991839235,2.28912,2060.7,2060.6,1.9582]
[1742991839938,2.28912,2060.7,2060.6,2.92867]
[1742991840338,2.28912,2060.7,2060.6,1.9582]
[1742991840733,1.3187,2060.7,2060.6,1.3177]
[1742991840935,0.97052,2060.5,2060.4,0.0072759]
[1742991841147,0.97052,2060.5,2060.4,1.3510759]
[1742991841934,1.3656,2060.5,2060.4,1.3510759]
[1742991842133,4.5734,2060.5,2060.0,5.63458]
[1742991842335,4.5734,2060.5,2060.4,1.32930291]
[1742991842640,5.52942291,2060.5,2060.4,1.32930291]
[1742991842838,0.97056,2060.4,2060.1,2.31529]
[1742991843041,0.97063,2060.3,2060.1,1.64609]
[1742991843444,0.7035,2060.2,2060.1,1.64609]
[1742991845546,0.7035,2060.2,2060.1,2.95889]
[1742991846137,0.7035,2060.2,2060.1,2.28349]
[1742991847145,0.97072,2060.1,2059.9,0.97076]
[1742991847344,1.61122,2060.1,2060.0,1.4182]
[1742991848650,1.61122,2060.1,2060.0,2.38895]
[1742991850045,0.6405,2060.1,2060.0,2.38895]
[1742991850641,1.61121,2060.1,2060.0,2.38895]
[1742991851943,1.61121,2060.1,2060.0,1.4182]
[1742991852245,1.61121,2060.1,2060.0,2.38895]
[1742991853147,0.6405,2060.1,2060.0,2.38895]
[1742991853945,1.9284,2060.1,2060.0,2.38895]
[1742991854138,2.89911,2060.1,2060.0,2.38895]
[1742991854643,1.2879,2060.1,2060.0,2.38895]
[1742991856054,2.42633,2060.5,2060.2,0.97063]
[1742991856055,3.164,2060.4,2060.2,0.97063]
[1742991856247,0.97063,2060.3,2060.2,0.97063]
[1742991856551,3.8033,2060.4,2060.2,0.97063]
[1742991856747,0.97061,2060.3,2060.2,0.97063]
[1742991857648,2.37161,2060.3,2060.2,0.97063]
[1742991857853,1.401,2060.3,2060.2,0.97063]
[1742991858946,1.401,2060.3,2060.2,1.67843]
[1742991859143,2.37161,2060.3,2060.2,1.67843]
[1742991859346,1.401,2060.3,2060.2,1.67843]
[1742991861842,1.401,2060.3,2060.2,0.97063]
[1742991861843,2.37161,2060.3,2060.2,0.97063]
[1742991863046,1.401,2060.3,2060.2,0.97063]
[1742991866346,3.2078,2060.8,2060.7,0.97042]
[1742991866554,1.34850291,2060.8,2060.7,0.97042]
[1742991867149,1.34850291,2060.8,2060.7,44.40822]
[1742991868454,0.0072759,2060.9,2060.8,0.97038]
[1742991868754,0.0072759,2060.9,2060.8,2.27628]
[1742991871157,0.0072759,2060.9,2060.8,0.97038]
[1742991871354,0.0072759,2060.9,2060.8,2.25308]
[1742991872056,1.3172759,2060.9,2060.8,2.25308]
[1742991873350,1.3172759,2060.9,2060.8,0.97038]
[1742991874258,1.3172759,2060.9,2060.8,41.77038]
[1742991876154,8.6534259,2060.9,2060.7,0.97039]
[1742991876452,1.3697,2060.8,2060.5,0.97049]
[1742991876650,0.97052,2060.6,2060.4,0.97055]
[1742991876857,1.3008,2060.5,2060.4,0.97055]
[1742991877255,1.3008,2060.5,2060.4,41.77055]
[1742991878261,2.27132,2060.5,2060.4,40.8]
[1742991878651,2.27132,2060.5,2060.4,0.97056]
[1742991878851,2.27132,2060.5,2060.3,0.97058]
[1742991879166,6.3678,2060.6,2060.3,40.8]
[1742991879167,3.62986,2060.4,2060.3,40.8]
[1742991879361,2.6593,2060.4,2060.3,0.97061]
[1742991879859,3.62986,2060.4,2060.3,0.97061]
[1742991880059,2.6593,2060.4,2060.3,0.97061]
[1742991880254,2.6593,2060.4,2060.3,41.77061]
[1742991880454,3.62986,2060.4,2060.3,41.77061]
[1742991880654,2.6593,2060.4,2060.3,41.77061]
[1742991883761,3.62986,2060.4,2060.3,41.77061]
[1742991883961,0.97066,2060.3,2060.2,0.97066]
[1742991884164,2.26156,2060.3,2060.1,1.2997]